[Event "Titled Tuesday Blitz February 28 Late 2023"]
[White "Costachi, Mihnea"]
[Black "Lucassen, Mickey"]
[WhiteFideId "1217518"]
[BlackFideId "12919110"]
[WhiteElo "2456"]
[BlackElo "2352"]
[Result "1/2-1/2"]
[Round "02"]
[TimeControl "180+2"]
[Date "2023.02.28"]
[WhiteClock "0:00:25"]
[BlackClock "0:00:26"]

1. Nc3 {[%clk 0:03:00]}  c5 {[%clk 0:02:53]} 2. Nf3 {[%clk 0:03:00]}  Nc6 {[%clk 0:02:52]} 3. g3 {[%clk 0:02:58]}  g6 {[%clk 0:02:52]} 4. Bg2 {[%clk 0:02:58]}  Bg7 {[%clk 0:02:53]} 5. O-O {[%clk 0:02:59]}  Nf6 {[%clk 0:02:53]} 6. e4 {[%clk 0:02:59]}  d6 {[%clk 0:02:52]} 7. d3 {[%clk 0:02:55]}  O-O {[%clk 0:02:52]} 8. h3 {[%clk 0:02:56]}  Rb8 {[%clk 0:02:52]} 9. a4 {[%clk 0:02:55]}  a6 {[%clk 0:02:52]} 10. Re1 {[%clk 0:02:55]}  b5 {[%clk 0:02:52]} 11. axb5 {[%clk 0:02:56]}  axb5 {[%clk 0:02:53]} 12. e5 {[%clk 0:02:57]}  dxe5 {[%clk 0:02:46]} 13. Nxe5 {[%clk 0:02:58]}  Nxe5 {[%clk 0:02:47]} 14. Rxe5 {[%clk 0:02:59]}  Nd7 {[%clk 0:02:47]} 15. Re1 {[%clk 0:02:56]}  Bb7 {[%clk 0:02:39]} 16. Bxb7 {[%clk 0:02:54]}  Rxb7 {[%clk 0:02:40]} 17. Qf3 {[%clk 0:02:54]}  Rb8 {[%clk 0:02:31]} 18. Bf4 {[%clk 0:02:51]}  e5 {[%clk 0:02:31]} 19. Bd2 {[%clk 0:02:51]}  b4 {[%clk 0:02:29]} 20. Nd5 {[%clk 0:02:44]}  Nb6 {[%clk 0:02:27]} 21. Nxb6 {[%clk 0:02:40]}  Qxb6 {[%clk 0:02:27]} 22. h4 {[%clk 0:02:28]}  h5 {[%clk 0:02:15]} 23. g4 {[%clk 0:02:22]}  hxg4 {[%clk 0:02:10]} 24. Qxg4 {[%clk 0:02:23]}  Rfd8 {[%clk 0:01:57]} 25. Be3 {[%clk 0:02:13]}  b3 {[%clk 0:01:43]} 26. cxb3 {[%clk 0:02:02]}  Qxb3 {[%clk 0:01:40]} 27. Bxc5 {[%clk 0:01:39]}  Qxd3 {[%clk 0:01:13]} 28. b4 {[%clk 0:01:31]}  Qd7 {[%clk 0:00:52]} 29. Qxd7 {[%clk 0:01:21]}  Rxd7 {[%clk 0:00:53]} 30. Rab1 {[%clk 0:01:21]}  Rdb7 {[%clk 0:00:53]} 31. Rb3 {[%clk 0:01:12]}  Bf8 {[%clk 0:00:49]} 32. Bxf8 {[%clk 0:01:10]}  Kxf8 {[%clk 0:00:48]} 33. Reb1 {[%clk 0:01:09]}  Rb5 {[%clk 0:00:46]} 34. Kf1 {[%clk 0:01:08]}  Ke7 {[%clk 0:00:47]} 35. Ke2 {[%clk 0:01:07]}  Rh8 {[%clk 0:00:47]} 36. Rh3 {[%clk 0:01:00]}  Rhb8 {[%clk 0:00:44]} 37. Rhb3 {[%clk 0:00:40]}  Rh8 {[%clk 0:00:42]} 38. Rh1 {[%clk 0:00:30]}  Rhb8 {[%clk 0:00:40]} 39. h5 {[%clk 0:00:31]}  gxh5 {[%clk 0:00:35]} 40. Rxh5 {[%clk 0:00:30]}  Rxb4 {[%clk 0:00:33]} 41. Rxe5+ {[%clk 0:00:23]}  Kf6 {[%clk 0:00:33]} 42. Rbe3 {[%clk 0:00:21]}  Rb2+ {[%clk 0:00:32]} 43. Kf3 {[%clk 0:00:22]}  R2b3 {[%clk 0:00:32]} 44. Re4 {[%clk 0:00:20]}  Rxe3+ {[%clk 0:00:31]} 45. fxe3 {[%clk 0:00:21]}  Rb6 {[%clk 0:00:31]} 46. Rf4+ {[%clk 0:00:22]}  Ke6 {[%clk 0:00:31]} 47. Rh4 {[%clk 0:00:22]}  f6 {[%clk 0:00:32]} 48. Kf4 {[%clk 0:00:22]}  Rb4+ {[%clk 0:00:32]} 49. e4 {[%clk 0:00:23]}  Rb1 {[%clk 0:00:30]} 50. Rh5 {[%clk 0:00:21]}  Rf1+ {[%clk 0:00:29]} 51. Ke3 {[%clk 0:00:22]}  Re1+ {[%clk 0:00:30]} 52. Kf3 {[%clk 0:00:23]}  Rf1+ {[%clk 0:00:30]} 53. Ke2 {[%clk 0:00:23]}  Ra1 {[%clk 0:00:30]} 54. Rb5 {[%clk 0:00:23]}  Ra2+ {[%clk 0:00:29]} 55. Ke3 {[%clk 0:00:23]}  Ra3+ {[%clk 0:00:30]} 56. Kf4 {[%clk 0:00:24]}  Ra1 {[%clk 0:00:28]} 57. Rb6+ {[%clk 0:00:24]}  Kf7 {[%clk 0:00:28]} 58. Rc6 {[%clk 0:00:22]}  Rf1+ {[%clk 0:00:27]} 59. Kg3 {[%clk 0:00:22]}  Re1 {[%clk 0:00:25]} 60. Kf3 {[%clk 0:00:22]}  Rf1+ {[%clk 0:00:24]} 61. Ke2 {[%clk 0:00:23]}  Ra1 {[%clk 0:00:25]} 62. Ke3 {[%clk 0:00:23]}  Kg6 {[%clk 0:00:21]} 63. Kf3 {[%clk 0:00:21]}  Ra3+ {[%clk 0:00:21]} 64. Kf4 {[%clk 0:00:20]}  Ra4 {[%clk 0:00:21]} 65. Rb6 {[%clk 0:00:20]}  Rc4 {[%clk 0:00:21]} 66. Rb8 {[%clk 0:00:20]}  Ra4 {[%clk 0:00:21]} 67. Rc8 {[%clk 0:00:20]}  Rb4 {[%clk 0:00:21]} 68. Rd8 {[%clk 0:00:20]}  Ra4 {[%clk 0:00:21]} 69. Rg8+ {[%clk 0:00:21]}  Kf7 {[%clk 0:00:21]} 70. Rb8 {[%clk 0:00:22]}  Kg6 {[%clk 0:00:21]} 71. Rb5 {[%clk 0:00:22]}  Rc4 {[%clk 0:00:21]} 72. Rb6 {[%clk 0:00:22]}  Ra4 {[%clk 0:00:20]} 73. Re6 {[%clk 0:00:22]}  Rb4 {[%clk 0:00:20]} 74. Kf3 {[%clk 0:00:22]}  Kg5 {[%clk 0:00:19]} 75. Ra6 {[%clk 0:00:17]}  Rb3+ {[%clk 0:00:19]} 76. Ke2 {[%clk 0:00:17]}  Kf4 {[%clk 0:00:20]} 77. Rxf6+ {[%clk 0:00:15]}  Kxe4 {[%clk 0:00:20]} 78. Rh6 {[%clk 0:00:15]}  Kd5 {[%clk 0:00:20]} 79. Kd2 {[%clk 0:00:15]}  Rb5 {[%clk 0:00:20]} 80. Kc3 {[%clk 0:00:15]}  Rc5+ {[%clk 0:00:20]} 81. Kd3 {[%clk 0:00:15]}  Rc6 {[%clk 0:00:19]} 82. Rh5+ {[%clk 0:00:15]}  Kd6 {[%clk 0:00:20]} 83. Kd4 {[%clk 0:00:16]}  Rb6 {[%clk 0:00:19]} 84. Rh6+ {[%clk 0:00:16]}  Kc7 {[%clk 0:00:20]} 85. Rh7+ {[%clk 0:00:17]}  Kc6 {[%clk 0:00:20]} 86. Kc4 {[%clk 0:00:17]}  Ra6 {[%clk 0:00:20]} 87. Rh6+ {[%clk 0:00:17]}  Kb7 {[%clk 0:00:21]} 88. Rh7+ {[%clk 0:00:18]}  Kb6 {[%clk 0:00:21]} 89. Kb4 {[%clk 0:00:18]}  Ra1 {[%clk 0:00:21]} 90. Rh6+ {[%clk 0:00:18]}  Kc7 {[%clk 0:00:21]} 91. Kb5 {[%clk 0:00:19]}  Rb1+ {[%clk 0:00:22]} 92. Kc4 {[%clk 0:00:20]}  Rc1+ {[%clk 0:00:22]} 93. Kd3 {[%clk 0:00:20]}  Rd1+ {[%clk 0:00:23]} 94. Ke2 {[%clk 0:00:21]}  Rd6 {[%clk 0:00:23]} 95. Rh5 {[%clk 0:00:21]}  Kc6 {[%clk 0:00:23]} 96. Ke3 {[%clk 0:00:21]}  Rd5 {[%clk 0:00:24]} 97. Rh8 {[%clk 0:00:22]}  Kc5 {[%clk 0:00:24]} 98. Ke4 {[%clk 0:00:22]}  Rd4+ {[%clk 0:00:24]} 99. Ke5 {[%clk 0:00:23]}  Ra4 {[%clk 0:00:25]} 100. Rc8+ {[%clk 0:00:23]}  Kb6 {[%clk 0:00:25]} 101. Kd5 {[%clk 0:00:23]}  Ra5+ {[%clk 0:00:25]} 102. Kd6 {[%clk 0:00:23]}  Ra1 {[%clk 0:00:25]} 103. Rb8+ {[%clk 0:00:22]}  Ka7 {[%clk 0:00:26]} 104. Rb3 {[%clk 0:00:22]}  Rd1+ {[%clk 0:00:26]} 105. Kc7 {[%clk 0:00:22]}  Rc1+ {[%clk 0:00:26]} 106. Kd6 {[%clk 0:00:23]}  Rd1+ {[%clk 0:00:26]} 107. Kc5 {[%clk 0:00:23]}  Rc1+ {[%clk 0:00:26]} 108. Kb5 {[%clk 0:00:24]}  Rc7 {[%clk 0:00:26]} 109. Ka5 {[%clk 0:00:23]}  Rc5+ {[%clk 0:00:25]} 110. Ka4 {[%clk 0:00:23]}  Rc4+ {[%clk 0:00:25]} 111. Kb5 {[%clk 0:00:24]}  Rc7 {[%clk 0:00:25]} 112. Rh3 {[%clk 0:00:24]}  Kb7 {[%clk 0:00:25]} 113. Rh6 {[%clk 0:00:23]}  Rg7 {[%clk 0:00:25]} 114. Rb6+ {[%clk 0:00:23]}  Kc7 {[%clk 0:00:25]} 115. Ra6 {[%clk 0:00:24]}  Rg5+ {[%clk 0:00:25]} 116. Kc4 {[%clk 0:00:24]}  Rg4+ {[%clk 0:00:25]} 117. Kd5 {[%clk 0:00:25]}  Rg5+ {[%clk 0:00:25]} 118. Ke4 {[%clk 0:00:25]}  Rg4+ {[%clk 0:00:25]} 119. Kf5 {[%clk 0:00:26]}  Rb4 {[%clk 0:00:26]} 120. Ra7+ {[%clk 0:00:26]}  Rb7 {[%clk 0:00:26]} 121. Ra5 {[%clk 0:00:26]}  Kb6 {[%clk 0:00:26]} 122. Ra2 {[%clk 0:00:26]}  Rc7 {[%clk 0:00:27]} 123. Ke5 {[%clk 0:00:27]}  Rc5+ {[%clk 0:00:27]} 124. Kd6 {[%clk 0:00:27]}  Rb5 {[%clk 0:00:26]} 125. Rc2 {[%clk 0:00:26]}  Rb1 {[%clk 0:00:26]} 126. Rc6+ {[%clk 0:00:25]}  Kb5 {[%clk 0:00:26]} 127. Rc8 {[%clk 0:00:25]}  Rd1+ {[%clk 0:00:26]} 1/2-1/2


[Site "https://www.chess.com"]

[Event "Titled Tuesday Blitz February 28 Late 2023"]
[White "Leschinsky, Gary"]
[Black "Salimova, Nurgyul"]
[WhiteFideId "30951321"]
[BlackFideId "2915138"]
[WhiteElo "1855"]
[BlackElo "2314"]
[Result "0-1"]
[Round "02"]
[TimeControl "180+2"]
[Date "2023.02.28"]
[WhiteClock "0:00:46"]
[BlackClock "0:00:44"]

1. d4 {[%clk 0:03:00]}  Nf6 {[%clk 0:02:59]} 2. c4 {[%clk 0:02:42]}  e6 {[%clk 0:02:59]} 3. Nc3 {[%clk 0:02:39]}  Bb4 {[%clk 0:03:00]} 4. e3 {[%clk 0:02:40]}  O-O {[%clk 0:02:58]} 5. Bd2 {[%clk 0:02:40]}  Re8 {[%clk 0:02:55]} 6. Nf3 {[%clk 0:02:39]}  d5 {[%clk 0:02:54]} 7. cxd5 {[%clk 0:02:34]}  exd5 {[%clk 0:02:54]} 8. Bd3 {[%clk 0:02:35]}  Bd6 {[%clk 0:02:42]} 9. O-O {[%clk 0:02:33]}  c6 {[%clk 0:02:43]} 10. Re1 {[%clk 0:02:28]}  Bg4 {[%clk 0:02:37]} 11. e4 {[%clk 0:02:25]}  dxe4 {[%clk 0:02:36]} 12. Nxe4 {[%clk 0:02:24]}  Nxe4 {[%clk 0:02:32]} 13. Bxe4 {[%clk 0:02:25]}  Nd7 {[%clk 0:02:27]} 14. h3 {[%clk 0:02:24]}  Bh5 {[%clk 0:02:23]} 15. Qc2 {[%clk 0:02:11]}  Nf6 {[%clk 0:02:12]} 16. Bg5 {[%clk 0:02:10]}  Bg6 {[%clk 0:01:50]} 17. Bxg6 {[%clk 0:02:02]}  hxg6 {[%clk 0:01:51]} 18. Rxe8+ {[%clk 0:02:00]}  Qxe8 {[%clk 0:01:52]} 19. Re1 {[%clk 0:01:59]}  Qd7 {[%clk 0:01:52]} 20. Ne5 {[%clk 0:01:58]}  Qe6 {[%clk 0:01:43]} 21. a3 {[%clk 0:01:49]}  Re8 {[%clk 0:01:39]} 22. Qd2 {[%clk 0:01:26]}  Qd5 {[%clk 0:01:34]} 23. Bxf6 {[%clk 0:01:17]}  gxf6 {[%clk 0:01:35]} 24. Ng4 {[%clk 0:01:18]}  Rxe1+ {[%clk 0:01:30]} 25. Qxe1 {[%clk 0:01:19]}  Qxd4 {[%clk 0:01:25]} 26. Qe2 {[%clk 0:01:13]}  Kg7 {[%clk 0:01:22]} 27. g3 {[%clk 0:01:13]}  f5 {[%clk 0:01:19]} 28. Ne3 {[%clk 0:01:12]}  f4 {[%clk 0:01:18]} 29. Nc2 {[%clk 0:01:12]}  Qxb2 {[%clk 0:01:15]} 30. gxf4 {[%clk 0:01:10]}  Qc1+ {[%clk 0:01:10]} 31. Kg2 {[%clk 0:01:07]}  Qxf4 {[%clk 0:01:10]} 32. Qd3 {[%clk 0:01:07]}  Be5 {[%clk 0:01:02]} 33. Ne1 {[%clk 0:00:58]}  c5 {[%clk 0:00:49]} 34. Nf3 {[%clk 0:00:53]}  Bf6 {[%clk 0:00:48]} 35. Qd7 {[%clk 0:00:49]}  Qe4 {[%clk 0:00:44]} 36. Qa4 {[%clk 0:00:46]}  Qxa4 {[%clk 0:00:44]} 0-1


[Site "https://www.chess.com"]

[Event "Titled Tuesday Blitz February 28 Late 2023"]
[White "Sai Krishna G V"]
[Black "Zampronha, Wladimir Camilo"]
[WhiteFideId "5028280"]
[BlackFideId "2103087"]
[WhiteElo "2359"]
[BlackElo "2176"]
[Result "0-1"]
[Round "02"]
[TimeControl "180+2"]
[Date "2023.02.28"]
[WhiteClock "0:00:21"]
[BlackClock "0:00:22"]

1. d4 {[%clk 0:03:00]}  Nf6 {[%clk 0:02:59]} 2. Nf3 {[%clk 0:03:00]}  e6 {[%clk 0:02:59]} 3. Bg5 {[%clk 0:03:00]}  d5 {[%clk 0:02:58]} 4. Nbd2 {[%clk 0:02:59]}  c5 {[%clk 0:02:57]} 5. e3 {[%clk 0:02:57]}  Nc6 {[%clk 0:02:57]} 6. c3 {[%clk 0:02:57]}  h6 {[%clk 0:02:56]} 7. Bh4 {[%clk 0:02:56]}  Be7 {[%clk 0:02:53]} 8. Bd3 {[%clk 0:02:55]}  O-O {[%clk 0:02:51]} 9. O-O {[%clk 0:02:55]}  b6 {[%clk 0:02:52]} 10. Rc1 {[%clk 0:02:54]}  Bb7 {[%clk 0:02:52]} 11. Bb1 {[%clk 0:02:50]}  cxd4 {[%clk 0:02:46]} 12. exd4 {[%clk 0:02:50]}  Na5 {[%clk 0:02:28]} 13. Re1 {[%clk 0:02:50]}  Rc8 {[%clk 0:02:27]} 14. Nf1 {[%clk 0:02:47]}  Ne4 {[%clk 0:02:24]} 15. Bxe7 {[%clk 0:02:45]}  Qxe7 {[%clk 0:02:25]} 16. Ng3 {[%clk 0:02:39]}  Nxg3 {[%clk 0:02:22]} 17. hxg3 {[%clk 0:02:40]}  Nc4 {[%clk 0:02:19]} 18. Ne5 {[%clk 0:02:35]}  Nxe5 {[%clk 0:02:10]} 19. Rxe5 {[%clk 0:02:36]}  g6 {[%clk 0:01:55]} 20. Qg4 {[%clk 0:02:31]}  Kg7 {[%clk 0:01:54]} 21. Rce1 {[%clk 0:02:29]}  Qf6 {[%clk 0:01:53]} 22. f4 {[%clk 0:02:15]}  Rc6 {[%clk 0:01:47]} 23. Kf2 {[%clk 0:02:09]}  Bc8 {[%clk 0:01:47]} 24. Rh1 {[%clk 0:02:05]}  Bd7 {[%clk 0:01:44]} 25. Qf3 {[%clk 0:01:57]}  Rh8 {[%clk 0:01:39]} 26. g4 {[%clk 0:01:57]}  b5 {[%clk 0:01:35]} 27. a3 {[%clk 0:01:36]}  a5 {[%clk 0:01:34]} 28. f5 {[%clk 0:01:16]}  exf5 {[%clk 0:01:22]} 29. Rxd5 {[%clk 0:01:15]}  fxg4 {[%clk 0:01:16]} 30. Qxf6+ {[%clk 0:01:11]}  Rxf6+ {[%clk 0:01:16]} 31. Kg3 {[%clk 0:01:12]}  Bc6 {[%clk 0:01:09]} 32. Rc5 {[%clk 0:01:10]}  h5 {[%clk 0:01:09]} 33. d5 {[%clk 0:01:10]}  Bd7 {[%clk 0:01:07]} 34. Bd3 {[%clk 0:01:07]}  Rb8 {[%clk 0:01:02]} 35. Re1 {[%clk 0:01:06]}  b4 {[%clk 0:01:00]} 36. Rxa5 {[%clk 0:01:02]}  bxc3 {[%clk 0:00:58]} 37. bxc3 {[%clk 0:01:03]}  Rb3 {[%clk 0:00:58]} 38. Rc5 {[%clk 0:01:02]}  Rxa3 {[%clk 0:00:58]} 39. Rc7 {[%clk 0:01:02]}  Bf5 {[%clk 0:00:55]} 40. Bxf5 {[%clk 0:00:59]}  gxf5 {[%clk 0:00:55]} 41. Kf4 {[%clk 0:00:55]}  Ra2 {[%clk 0:00:48]} 42. g3 {[%clk 0:00:51]}  Rf2+ {[%clk 0:00:48]} 43. Ke5 {[%clk 0:00:50]}  Rf3 {[%clk 0:00:48]} 44. c4 {[%clk 0:00:44]}  Rxg3 {[%clk 0:00:49]} 45. c5 {[%clk 0:00:44]}  Rd3 {[%clk 0:00:47]} 46. Rh1 {[%clk 0:00:42]}  g3 {[%clk 0:00:34]} 47. d6 {[%clk 0:00:37]}  g2 {[%clk 0:00:30]} 48. Rg1 {[%clk 0:00:38]}  Rg6 {[%clk 0:00:30]} 49. d7 {[%clk 0:00:24]}  h4 {[%clk 0:00:30]} 50. Rc8 {[%clk 0:00:22]}  Rxd7 {[%clk 0:00:27]} 51. c6 {[%clk 0:00:22]}  Rd2 {[%clk 0:00:26]} 52. c7 {[%clk 0:00:20]}  Rc2 {[%clk 0:00:25]} 53. Kxf5 {[%clk 0:00:21]}  h3 {[%clk 0:00:22]} 0-1


[Site "https://www.chess.com"]

[Event "Titled Tuesday Blitz February 28 Late 2023"]
[White "Smith, Garrett L"]
[Black "Tan, Zhongyi"]
[WhiteFideId "2024829"]
[BlackFideId "8603642"]
[WhiteElo "2288"]
[BlackElo "2519"]
[Result "0-1"]
[Round "02"]
[TimeControl "180+2"]
[Date "2023.02.28"]
[WhiteClock "0:00:36"]
[BlackClock "0:00:15"]

1. e4 {[%clk 0:03:00]}  e5 {[%clk 0:02:51]} 2. Nf3 {[%clk 0:02:54]}  Nc6 {[%clk 0:02:50]} 3. Bc4 {[%clk 0:02:54]}  Nf6 {[%clk 0:02:49]} 4. Ng5 {[%clk 0:02:54]}  d5 {[%clk 0:02:48]} 5. exd5 {[%clk 0:02:55]}  Na5 {[%clk 0:02:48]} 6. Bb5+ {[%clk 0:02:56]}  c6 {[%clk 0:02:48]} 7. dxc6 {[%clk 0:02:57]}  bxc6 {[%clk 0:02:49]} 8. Bd3 {[%clk 0:02:57]}  h6 {[%clk 0:02:44]} 9. Ne4 {[%clk 0:02:57]}  Nd5 {[%clk 0:02:43]} 10. Ng3 {[%clk 0:02:52]}  g6 {[%clk 0:02:28]} 11. O-O {[%clk 0:02:52]}  Bg7 {[%clk 0:02:26]} 12. Nc3 {[%clk 0:02:33]}  O-O {[%clk 0:02:25]} 13. b3 {[%clk 0:02:24]}  f5 {[%clk 0:02:24]} 14. Ba3 {[%clk 0:02:20]}  Rf7 {[%clk 0:02:17]} 15. b4 {[%clk 0:02:06]}  Nb7 {[%clk 0:02:13]} 16. b5 {[%clk 0:02:00]}  cxb5 {[%clk 0:01:45]} 17. Bxb5 {[%clk 0:01:54]}  Nxc3 {[%clk 0:01:40]} 18. dxc3 {[%clk 0:01:53]}  Be6 {[%clk 0:01:26]} 19. Bc6 {[%clk 0:01:46]}  Qc7 {[%clk 0:01:20]} 20. Bd5 {[%clk 0:01:29]}  Bxd5 {[%clk 0:01:11]} 21. Qxd5 {[%clk 0:01:28]}  Qxc3 {[%clk 0:00:57]} 22. Rab1 {[%clk 0:01:17]}  Rd8 {[%clk 0:00:53]} 23. Qb3 {[%clk 0:01:18]}  Qxb3 {[%clk 0:00:49]} 24. axb3 {[%clk 0:01:14]}  e4 {[%clk 0:00:47]} 25. c4 {[%clk 0:01:14]}  Na5 {[%clk 0:00:44]} 26. c5 {[%clk 0:01:11]}  Rd3 {[%clk 0:00:35]} 27. Rfd1 {[%clk 0:01:02]}  Rfd7 {[%clk 0:00:28]} 28. Rxd3 {[%clk 0:00:59]}  Rxd3 {[%clk 0:00:29]} 29. Bb4 {[%clk 0:00:56]}  Rxb3 {[%clk 0:00:19]} 30. Rxb3 {[%clk 0:00:55]}  Nxb3 {[%clk 0:00:20]} 31. c6 {[%clk 0:00:55]}  Be5 {[%clk 0:00:20]} 32. Be7 {[%clk 0:00:44]}  Bc7 {[%clk 0:00:19]} 33. Ne2 {[%clk 0:00:41]}  Kf7 {[%clk 0:00:19]} 34. Bb4 {[%clk 0:00:41]}  a5 {[%clk 0:00:18]} 35. Ba3 {[%clk 0:00:41]}  Ke6 {[%clk 0:00:18]} 36. Nc3 {[%clk 0:00:41]}  Nd4 {[%clk 0:00:16]} 37. Na4 {[%clk 0:00:34]}  Nxc6 {[%clk 0:00:15]} 38. Nc5+ {[%clk 0:00:35]}  Kd5 {[%clk 0:00:15]} 39. Kf1 {[%clk 0:00:36]}  Bd6 {[%clk 0:00:15]} 0-1


[Site "https://www.chess.com"]

[Event "Titled Tuesday Blitz February 28 Late 2023"]
[White "Siddharth, Jagadeesh"]
[Black "Einarsson, Halldor Gretar"]
[WhiteFideId "5818320"]
[BlackFideId "2300150"]
[WhiteElo "2303"]
[BlackElo "2126"]
[Result "1-0"]
[Round "02"]
[TimeControl "180+2"]
[Date "2023.02.28"]
[WhiteClock "0:00:34"]
[BlackClock "0:00:01"]

1. d4 {[%clk 0:03:00]}  Nf6 {[%clk 0:02:58]} 2. c4 {[%clk 0:03:01]}  g6 {[%clk 0:02:58]} 3. Nc3 {[%clk 0:03:00]}  d5 {[%clk 0:02:58]} 4. cxd5 {[%clk 0:03:00]}  Nxd5 {[%clk 0:02:58]} 5. Nxd5 {[%clk 0:03:01]}  Qxd5 {[%clk 0:02:58]} 6. e3 {[%clk 0:03:02]}  Bg7 {[%clk 0:02:56]} 7. Ne2 {[%clk 0:03:02]}  c5 {[%clk 0:02:51]} 8. Nc3 {[%clk 0:03:00]}  Qd8 {[%clk 0:02:47]} 9. dxc5 {[%clk 0:02:48]}  Nd7 {[%clk 0:02:28]} 10. Bb5 {[%clk 0:02:28]}  O-O {[%clk 0:02:25]} 11. c6 {[%clk 0:02:13]}  bxc6 {[%clk 0:01:28]} 12. Bxc6 {[%clk 0:02:14]}  Rb8 {[%clk 0:01:27]} 13. O-O {[%clk 0:02:04]}  Ne5 {[%clk 0:00:57]} 14. Bb5 {[%clk 0:02:04]}  Qa5 {[%clk 0:00:51]} 15. a4 {[%clk 0:01:44]}  Rd8 {[%clk 0:00:49]} 16. Qc2 {[%clk 0:01:34]}  a6 {[%clk 0:00:32]} 17. Be2 {[%clk 0:01:34]}  Bb7 {[%clk 0:00:28]} 18. e4 {[%clk 0:01:22]}  Qb4 {[%clk 0:00:26]} 19. Bd2 {[%clk 0:01:11]}  Rbc8 {[%clk 0:00:25]} 20. Rfd1 {[%clk 0:01:03]}  Qb6 {[%clk 0:00:15]} 21. Be3 {[%clk 0:00:59]}  Qc6 {[%clk 0:00:13]} 22. Rxd8+ {[%clk 0:00:57]}  Rxd8 {[%clk 0:00:11]} 23. Qb3 {[%clk 0:00:58]}  e6 {[%clk 0:00:06]} 24. Rd1 {[%clk 0:00:55]}  Rc8 {[%clk 0:00:05]} 25. f3 {[%clk 0:00:53]}  Nd7 {[%clk 0:00:04]} 26. Rc1 {[%clk 0:00:51]}  Nc5 {[%clk 0:00:04]} 27. Qb4 {[%clk 0:00:49]}  a5 {[%clk 0:00:03]} 28. Qb5 {[%clk 0:00:43]}  Qxb5 {[%clk 0:00:03]} 29. Bxb5 {[%clk 0:00:38]}  Nb3 {[%clk 0:00:04]} 30. Rd1 {[%clk 0:00:38]}  Bxc3 {[%clk 0:00:02]} 31. bxc3 {[%clk 0:00:39]}  Rxc3 {[%clk 0:00:02]} 32. Bg5 {[%clk 0:00:39]}  Rc2 {[%clk 0:00:02]} 33. Bf6 {[%clk 0:00:37]}  Rd2 {[%clk 0:00:02]} 34. Rb1 {[%clk 0:00:36]}  Nc5 {[%clk 0:00:01]} 35. Bc6 {[%clk 0:00:34]} 1-0


[Site "https://www.chess.com"]

[Event "Titled Tuesday Blitz February 28 Late 2023"]
[White "Adewumi, Tanitoluwa"]
[Black "Floresvillar Gonzalez, Luis Migu"]
[WhiteFideId "30966396"]
[BlackFideId "5100542"]
[WhiteElo "2676"]
[BlackElo "2040"]
[Result "1-0"]
[Round "02"]
[TimeControl "180+2"]
[Date "2023.02.28"]
[WhiteClock "0:00:04"]
[BlackClock "0:00:17"]

1. e4 {[%clk 0:02:59]}  e6 {[%clk 0:02:59]} 2. d4 {[%clk 0:02:53]}  d5 {[%clk 0:02:59]} 3. exd5 {[%clk 0:02:54]}  exd5 {[%clk 0:02:59]} 4. Nf3 {[%clk 0:02:53]}  Bd6 {[%clk 0:02:58]} 5. c4 {[%clk 0:02:53]}  c6 {[%clk 0:02:58]} 6. c5 {[%clk 0:02:53]}  Bc7 {[%clk 0:02:57]} 7. Bd3 {[%clk 0:02:53]}  Ne7 {[%clk 0:02:55]} 8. O-O {[%clk 0:02:53]}  O-O {[%clk 0:02:27]} 9. Qc2 {[%clk 0:02:31]}  h6 {[%clk 0:02:18]} 10. Nc3 {[%clk 0:01:50]}  Bg4 {[%clk 0:02:17]} 11. Nh4 {[%clk 0:01:21]}  Nd7 {[%clk 0:02:11]} 12. h3 {[%clk 0:01:17]}  Be6 {[%clk 0:02:09]} 13. f4 {[%clk 0:01:07]}  f6 {[%clk 0:01:57]} 14. Bd2 {[%clk 0:00:57]}  b6 {[%clk 0:01:56]} 15. Rae1 {[%clk 0:00:54]}  Bf7 {[%clk 0:01:53]} 16. b4 {[%clk 0:00:51]}  a5 {[%clk 0:01:52]} 17. a3 {[%clk 0:00:39]}  axb4 {[%clk 0:01:52]} 18. axb4 {[%clk 0:00:40]}  bxc5 {[%clk 0:01:51]} 19. bxc5 {[%clk 0:00:38]}  Re8 {[%clk 0:01:35]} 20. Re2 {[%clk 0:00:26]}  Nf8 {[%clk 0:01:26]} 21. Rfe1 {[%clk 0:00:23]}  Nc8 {[%clk 0:01:19]} 22. Rxe8 {[%clk 0:00:20]}  Bxe8 {[%clk 0:01:18]} 23. Nf5 {[%clk 0:00:14]}  Bf7 {[%clk 0:01:02]} 24. Be3 {[%clk 0:00:11]}  Ba5 {[%clk 0:01:01]} 25. Ra1 {[%clk 0:00:09]}  Ne7 {[%clk 0:00:57]} 26. Nd6 {[%clk 0:00:08]}  Ne6 {[%clk 0:00:43]} 27. Qa4 {[%clk 0:00:07]}  Ra7 {[%clk 0:00:33]} 28. Qc2 {[%clk 0:00:03]}  Qa8 {[%clk 0:00:30]} 29. Ne2 {[%clk 0:00:03]}  Bc7 {[%clk 0:00:28]} 30. Rb1 {[%clk 0:00:03]}  Qd8 {[%clk 0:00:23]} 31. Nxf7 {[%clk 0:00:03]}  Kxf7 {[%clk 0:00:22]} 32. Qd2 {[%clk 0:00:04]}  Ba5 {[%clk 0:00:20]} 33. Qd1 {[%clk 0:00:04]}  Bc7 {[%clk 0:00:20]} 34. Qf1 {[%clk 0:00:04]}  f5 {[%clk 0:00:17]} 35. Ng3 {[%clk 0:00:03]}  Qc8 {[%clk 0:00:15]} 36. Nxf5 {[%clk 0:00:03]}  Nxf5 {[%clk 0:00:15]} 37. Bxf5 {[%clk 0:00:04]}  Rb7 {[%clk 0:00:14]} 38. Rxb7 {[%clk 0:00:03]}  Qxb7 {[%clk 0:00:14]} 39. Bxe6+ {[%clk 0:00:04]}  Kxe6 {[%clk 0:00:14]} 40. f5+ {[%clk 0:00:04]}  Kf7 {[%clk 0:00:14]} 41. f6 {[%clk 0:00:04]}  gxf6 {[%clk 0:00:14]} 42. Qf5 {[%clk 0:00:04]}  Bd8 {[%clk 0:00:11]} 43. Qh7+ {[%clk 0:00:04]}  Ke6 {[%clk 0:00:09]} 44. Qxb7 {[%clk 0:00:04]}  Kf5 {[%clk 0:00:10]} 45. Qxc6 {[%clk 0:00:04]}  Ke4 {[%clk 0:00:11]} 46. Qe6+ {[%clk 0:00:04]}  Kd3 {[%clk 0:00:12]} 47. Qxd5 {[%clk 0:00:04]}  Ke2 {[%clk 0:00:13]} 48. Qxd8 {[%clk 0:00:05]}  Kd3 {[%clk 0:00:14]} 49. c6 {[%clk 0:00:05]}  Kc2 {[%clk 0:00:15]} 50. c7 {[%clk 0:00:05]}  Kd3 {[%clk 0:00:14]} 51. c8=Q {[%clk 0:00:06]}  Ke2 {[%clk 0:00:15]} 52. Qc2+ {[%clk 0:00:06]}  Kxe3 {[%clk 0:00:16]} 53. Qe7+ {[%clk 0:00:05]}  Kf4 {[%clk 0:00:16]} 54. Qee4+ {[%clk 0:00:05]}  Kg5 {[%clk 0:00:17]} 55. Qf5+ {[%clk 0:00:05]}  Kh4 {[%clk 0:00:16]} 56. Qg6 {[%clk 0:00:06]}  h5 {[%clk 0:00:17]} 57. Qce4# {[%clk 0:00:04]} 1-0


[Site "https://www.chess.com"]